[Event "*** Titled Tuesday Blitz"]
[Site "Chess.com"]
[Date "2020.04.14"]
[Round "9"]
[White "BilguunSu"]
[Black "iulik86"]
[Result "1-0"]
[WhiteElo "2728"]
[BlackElo "2539"]
[TimeControl "180+1"]
[EndTime "11:40:16 PDT"]
[Termination "BilguunSu won by resignation"]

1. e4 {[%clk 0:03:00.9]} 1... c6 {[%clk 0:02:58.1]} 2. Nf3 {[%clk 0:02:58.7]}
2... d5 {[%clk 0:02:57.7]} 3. Nc3 {[%clk 0:02:59.2]} 3... a6 {[%clk 0:02:54.9]}
4. d4 {[%clk 0:02:57.6]} 4... Bg4 {[%clk 0:02:54.4]} 5. Be2 {[%clk 0:02:53]}
5... e6 {[%clk 0:02:54.4]} 6. h3 {[%clk 0:02:52.6]} 6... Bh5 {[%clk 0:02:54.4]}
7. O-O {[%clk 0:02:52.2]} 7... Nf6 {[%clk 0:02:53.8]} 8. e5 {[%clk 0:02:51.8]}
8... Nfd7 {[%clk 0:02:54.2]} 9. Ne1 {[%clk 0:02:49.5]} 9... Bg6 {[%clk
0:02:49.5]} 10. Bd3 {[%clk 0:02:46.3]} 10... c5 {[%clk 0:02:49]} 11. Ne2 {[%clk
0:02:45.7]} 11... cxd4 {[%clk 0:02:45]} 12. f4 {[%clk 0:02:44.8]} 12... Bxd3
{[%clk 0:02:44.4]} 13. cxd3 {[%clk 0:02:43.2]} 13... g6 {[%clk 0:02:40.5]} 14.
Nf3 {[%clk 0:02:42]} 14... Nc6 {[%clk 0:02:40]} 15. Kh2 {[%clk 0:02:41.9]} 15...
h5 {[%clk 0:02:36.2]} 16. Nexd4 {[%clk 0:02:40]} 16... Nxd4 {[%clk 0:02:35.4]}
17. Nxd4 {[%clk 0:02:39.3]} 17... Bc5 {[%clk 0:02:30.2]} 18. Nf3 {[%clk
0:02:38.6]} 18... h4 {[%clk 0:02:25.2]} 19. Bd2 {[%clk 0:02:33.4]} 19... Rc8
{[%clk 0:02:16.4]} 20. Rc1 {[%clk 0:02:31.7]} 20... O-O {[%clk 0:02:07.5]} 21.
Be1 {[%clk 0:02:29.4]} 21... Be7 {[%clk 0:01:59.1]} 22. Rxc8 {[%clk 0:02:28.7]}
22... Qxc8 {[%clk 0:02:00]} 23. Bxh4 {[%clk 0:02:28.6]} 23... Bxh4 {[%clk
0:01:59.2]} 24. Nxh4 {[%clk 0:02:28]} 24... Qc5 {[%clk 0:01:59.4]} 25. Nf3
{[%clk 0:02:27.4]} 25... Rc8 {[%clk 0:01:58.3]} 26. Ng5 {[%clk 0:02:26.9]} 26...
Qc2 {[%clk 0:01:54.4]} 27. Qg4 {[%clk 0:02:24.1]} 27... Qxd3 {[%clk 0:01:51.7]}
28. Qh4 {[%clk 0:02:22.6]} 28... Nf8 {[%clk 0:01:47.5]} 29. Rf3 {[%clk
0:02:22.3]} 29... Qd2 {[%clk 0:01:36.2]} 30. f5 {[%clk 0:02:06.8]} 30... Qxb2
{[%clk 0:01:19.5]} 31. Nxf7 {[%clk 0:01:53.4]} 31... exf5 {[%clk 0:00:57.4]} 32.
Qh8+ {[%clk 0:01:51.8]} 32... Kxf7 {[%clk 0:00:55.1]} 33. e6+ {[%clk 0:01:51.8]}
1-0

[Event "*** Titled Tuesday Blitz"]
[Site "Chess.com"]
[Date "2020.04.14"]
[Round "9"]
[White "IMTominho"]
[Black "temiksmozg"]
[Result "0-1"]
[WhiteElo "2820"]
[BlackElo "2672"]
[TimeControl "180+1"]
[EndTime "11:40:22 PDT"]
[Termination "temiksmozg won by resignation"]

1. d4 {[%clk 0:03:00.9]} 1... d5 {[%clk 0:02:59.3]} 2. Bg5 {[%clk 0:03:00.4]}
2... c6 {[%clk 0:02:47]} 3. e3 {[%clk 0:02:58.7]} 3... h6 {[%clk 0:02:46.1]} 4.
Bh4 {[%clk 0:02:58.6]} 4... Qb6 {[%clk 0:02:46.7]} 5. Qc1 {[%clk 0:02:58.5]}
5... e5 {[%clk 0:02:47.1]} 6. dxe5 {[%clk 0:02:55.4]} 6... Qb4+ {[%clk
0:02:47.2]} 7. Nd2 {[%clk 0:02:51.3]} 7... Qxh4 {[%clk 0:02:48.1]} 8. Ngf3
{[%clk 0:02:52.2]} 8... Qe7 {[%clk 0:02:41.8]} 9. c4 {[%clk 0:02:43.2]} 9... Nd7
{[%clk 0:02:41.5]} 10. cxd5 {[%clk 0:02:42.4]} 10... Nxe5 {[%clk 0:02:41.9]} 11.
Nxe5 {[%clk 0:02:42.3]} 11... Qxe5 {[%clk 0:02:41.3]} 12. dxc6 {[%clk
0:02:42.9]} 12... Nf6 {[%clk 0:02:34.5]} 13. Be2 {[%clk 0:02:39.3]} 13... Bb4
{[%clk 0:02:25.8]} 14. Bf3 {[%clk 0:02:38.7]} 14... O-O {[%clk 0:02:09.7]} 15.
O-O {[%clk 0:02:33.8]} 15... Bxd2 {[%clk 0:02:06.5]} 16. Qxd2 {[%clk 0:02:31.5]}
16... bxc6 {[%clk 0:02:06.5]} 17. Bxc6 {[%clk 0:02:25.2]} 17... Rb8 {[%clk
0:02:04.4]} 18. b3 {[%clk 0:02:25.7]} 18... Ng4 {[%clk 0:02:03.9]} 19. g3 {[%clk
0:02:23.4]} 19... Qh5 {[%clk 0:02:03]} 20. h4 {[%clk 0:02:22.9]} 20... Ne5
{[%clk 0:02:03.2]} 21. Bg2 {[%clk 0:02:16]} 21... Bb7 {[%clk 0:02:02.4]} 22. Qd1
{[%clk 0:01:51.7]} 22... Nf3+ {[%clk 0:01:46.2]} 23. Kh1 {[%clk 0:01:45.9]}
23... Rfd8 {[%clk 0:01:46.5]} 24. Qe2 {[%clk 0:01:46.4]} 24... Rd2 {[%clk
0:01:45]} 25. Qc4 {[%clk 0:01:46.5]} 25... Rbd8 {[%clk 0:01:36.6]} 26. a4 {[%clk
0:01:31.5]} 26... Qf5 {[%clk 0:01:29.1]} 27. e4 {[%clk 0:01:28.2]} 27... Bxe4
{[%clk 0:01:26.9]} 28. Rae1 {[%clk 0:01:26.9]} 28... Ba8 {[%clk 0:01:22.9]} 29.
Re3 {[%clk 0:01:20.4]} 29... Ne5 {[%clk 0:01:19.9]} 0-1

[Event "*** Titled Tuesday Blitz"]
[Site "Chess.com"]
[Date "2020.04.14"]
[Round "9"]
[White "Niklas2304"]
[Black "ecwinslow"]
[Result "0-1"]
[WhiteElo "2392"]
[BlackElo "2117"]
[TimeControl "180+1"]
[EndTime "11:40:24 PDT"]
[Termination "ecwinslow won by resignation"]

1. e4 {[%clk 0:03:00.9]} 1... c5 {[%clk 0:02:59.4]} 2. Nf3 {[%clk 0:02:59.8]}
2... d6 {[%clk 0:02:58.4]} 3. d4 {[%clk 0:02:58.5]} 3... cxd4 {[%clk 0:02:58.2]}
4. Nxd4 {[%clk 0:02:59.4]} 4... Nf6 {[%clk 0:02:58.2]} 5. Nc3 {[%clk 0:03:00]}
5... g6 {[%clk 0:02:58.8]} 6. Be3 {[%clk 0:02:59.7]} 6... Bg7 {[%clk 0:02:58]}
7. Be2 {[%clk 0:02:58.3]} 7... O-O {[%clk 0:02:56]} 8. Qd2 {[%clk 0:02:58.8]}
8... Nc6 {[%clk 0:02:55.6]} 9. O-O-O {[%clk 0:02:59.4]} 9... Nxd4 {[%clk
0:02:52.3]} 10. Bxd4 {[%clk 0:03:00.3]} 10... Be6 {[%clk 0:02:51.8]} 11. h4
{[%clk 0:03:00.4]} 11... h5 {[%clk 0:02:49]} 12. f4 {[%clk 0:02:58.8]} 12... Qa5
{[%clk 0:02:46.3]} 13. f5 {[%clk 0:02:56.9]} 13... gxf5 {[%clk 0:02:16.5]} 14.
Qg5 {[%clk 0:01:57]} 14... Rfc8 {[%clk 0:02:08.6]} 15. Rh3 {[%clk 0:01:47]}
15... Kh7 {[%clk 0:01:54.4]} 16. Be3 {[%clk 0:01:23.3]} 16... Rxc3 {[%clk
0:01:42.8]} 17. bxc3 {[%clk 0:01:17.7]} 17... Qa3+ {[%clk 0:01:29.9]} 18. Kb1
{[%clk 0:01:14.6]} 18... Nxe4 {[%clk 0:01:29.5]} 19. Qxh5+ {[%clk 0:01:13.2]}
19... Kg8 {[%clk 0:01:29.3]} 0-1

[Event "*** Titled Tuesday Blitz"]
[Site "Chess.com"]
[Date "2020.04.14"]
[Round "9"]
[White "DanielDardha2005"]
[Black "KazakhFighter04"]
[Result "0-1"]
[WhiteElo "2571"]
[BlackElo "2722"]
[TimeControl "180+1"]
[EndTime "11:40:29 PDT"]
[Termination "KazakhFighter04 won by resignation"]

1. e4 {[%clk 0:02:59.4]} 1... g6 {[%clk 0:02:56.7]} 2. h4 {[%clk 0:02:58.8]}
2... d5 {[%clk 0:02:52]} 3. h5 {[%clk 0:02:57]} 3... dxe4 {[%clk 0:02:47.6]} 4.
hxg6 {[%clk 0:02:57]} 4... fxg6 {[%clk 0:02:48.5]} 5. Nc3 {[%clk 0:02:56.9]}
5... Nf6 {[%clk 0:02:48.9]} 6. Qe2 {[%clk 0:02:56.5]} 6... Bg4 {[%clk
0:02:48.5]} 7. Qb5+ {[%clk 0:02:55.3]} 7... Bd7 {[%clk 0:02:46.3]} 8. Qxb7
{[%clk 0:02:44.8]} 8... Nc6 {[%clk 0:02:45.8]} 9. Bb5 {[%clk 0:02:34.5]} 9...
Rb8 {[%clk 0:02:42.9]} 10. Bxc6 {[%clk 0:02:34.7]} 10... Rxb7 {[%clk 0:02:41]}
11. Bxb7 {[%clk 0:02:35.6]} 11... c6 {[%clk 0:02:37.1]} 12. Ba6 {[%clk
0:02:33.4]} 12... Qb6 {[%clk 0:02:29.1]} 13. Bc4 {[%clk 0:02:33.2]} 13... Bf5
{[%clk 0:02:28]} 14. Nh3 {[%clk 0:02:20.7]} 14... e6 {[%clk 0:02:24.3]} 15. b3
{[%clk 0:02:14]} 15... Bg7 {[%clk 0:02:09.6]} 16. Bb2 {[%clk 0:02:12.3]} 16...
O-O {[%clk 0:02:05.5]} 17. O-O-O {[%clk 0:01:59.1]} 17... Nd5 {[%clk 0:02:00]}
18. Ng5 {[%clk 0:01:53.5]} 18... Nxc3 {[%clk 0:01:55.4]} 19. dxc3 {[%clk
0:01:50.7]} 19... Qxf2 {[%clk 0:01:54.2]} 20. Nxe6 {[%clk 0:01:49.3]} 20... Bxe6
{[%clk 0:01:52]} 21. Bxe6+ {[%clk 0:01:50.2]} 21... Kh8 {[%clk 0:01:51.6]} 22.
Rd7 {[%clk 0:01:44.2]} 22... e3 {[%clk 0:01:37.9]} 23. c4 {[%clk 0:01:39.3]}
23... Qf1+ {[%clk 0:01:23.3]} 24. Rxf1 {[%clk 0:01:23]} 24... Rxf1+ {[%clk
0:01:24.2]} 25. Rd1 {[%clk 0:01:23.3]} 25... e2 {[%clk 0:01:23.5]} 26. Bxg7+
{[%clk 0:01:21]} 26... Kxg7 {[%clk 0:01:24.4]} 27. Re1 {[%clk 0:01:21.4]} 27...
Rxe1+ {[%clk 0:01:20.9]} 28. Kd2 {[%clk 0:01:21.8]} 28... Rc1 {[%clk 0:01:21.2]}
29. Kxe2 {[%clk 0:01:21.2]} 29... Rxc2+ {[%clk 0:01:21.6]} 30. Kf3 {[%clk
0:01:21.5]} 30... Rxa2 {[%clk 0:01:22.1]} 31. c5 {[%clk 0:01:20.6]} 31... Rc2
{[%clk 0:01:21]} 32. b4 {[%clk 0:01:20]} 32... Rb2 {[%clk 0:01:20.9]} 33. Bd7
{[%clk 0:01:18.6]} 33... Rxb4 {[%clk 0:01:20.2]} 34. Bxc6 {[%clk 0:01:18.7]}
34... Rc4 {[%clk 0:01:20.2]} 0-1

[Event "*** Titled Tuesday Blitz"]
[Site "Chess.com"]
[Date "2020.04.14"]
[Round "9"]
[White "Vojtastr"]
[Black "mjray79"]
[Result "0-1"]
[WhiteElo "2468"]
[BlackElo "2287"]
[TimeControl "180+1"]
[EndTime "11:40:29 PDT"]
[Termination "mjray79 won by resignation"]

1. c4 {[%clk 0:02:58.5]} 1... Nf6 {[%clk 0:02:59.5]} 2. Nc3 {[%clk 0:02:58.7]}
2... g6 {[%clk 0:03:00]} 3. e4 {[%clk 0:02:58.6]} 3... d6 {[%clk 0:02:57.4]} 4.
d4 {[%clk 0:02:58.4]} 4... Bg7 {[%clk 0:02:57.8]} 5. Nf3 {[%clk 0:02:57.9]} 5...
O-O {[%clk 0:02:58.2]} 6. Be2 {[%clk 0:02:57.5]} 6... e5 {[%clk 0:02:57.3]} 7.
d5 {[%clk 0:02:57.5]} 7... a5 {[%clk 0:02:55.5]} 8. Bg5 {[%clk 0:02:56.9]} 8...
Na6 {[%clk 0:02:55.1]} 9. Nd2 {[%clk 0:02:56.6]} 9... Qe8 {[%clk 0:02:54.7]} 10.
O-O {[%clk 0:02:54]} 10... Nc5 {[%clk 0:02:54.1]} 11. Be3 {[%clk 0:02:40.9]}
11... b6 {[%clk 0:02:53]} 12. a3 {[%clk 0:02:38]} 12... a4 {[%clk 0:02:51.1]}
13. Bxc5 {[%clk 0:02:35.6]} 13... bxc5 {[%clk 0:02:52]} 14. Nxa4 {[%clk
0:02:36]} 14... Qxa4 {[%clk 0:02:49.1]} 15. b3 {[%clk 0:02:32.7]} 15... Qe8
{[%clk 0:02:46.6]} 16. b4 {[%clk 0:02:31.5]} 16... cxb4 {[%clk 0:02:42.7]} 17.
axb4 {[%clk 0:02:32.4]} 17... Bd7 {[%clk 0:02:42.2]} 18. Qc2 {[%clk 0:02:30]}
18... Ba4 {[%clk 0:02:40.6]} 19. Qc3 {[%clk 0:02:27]} 19... Qd7 {[%clk 0:02:29]}
20. c5 {[%clk 0:02:21.3]} 20... dxc5 {[%clk 0:02:14.2]} 21. bxc5 {[%clk
0:02:22.2]} 21... c6 {[%clk 0:02:14.2]} 22. d6 {[%clk 0:02:20]} 22... Rfb8
{[%clk 0:02:08.6]} 23. Ra3 {[%clk 0:02:13.3]} 23... Bb5 {[%clk 0:01:53.2]} 24.
Rxa8 {[%clk 0:02:06.3]} 24... Rxa8 {[%clk 0:01:54.1]} 25. Bxb5 {[%clk
0:02:05.6]} 25... cxb5 {[%clk 0:01:55]} 26. Qb4 {[%clk 0:01:58.5]} 26... Ra4
{[%clk 0:01:50.6]} 27. Qb3 {[%clk 0:01:55.7]} 27... Nxe4 {[%clk 0:01:48.1]} 28.
Nxe4 {[%clk 0:01:55.2]} 28... Rxe4 {[%clk 0:01:49]} 29. Rb1 {[%clk 0:01:46.1]}
29... Rc4 {[%clk 0:01:47.3]} 30. Qa3 {[%clk 0:01:41]} 30... Qc6 {[%clk 0:01:39]}
31. g3 {[%clk 0:01:40.4]} 31... Rxc5 {[%clk 0:01:17.3]} 32. d7 {[%clk
0:01:38.4]} 32... Rd5 {[%clk 0:01:16.7]} 33. Rc1 {[%clk 0:01:28.2]} 33... Qxd7
{[%clk 0:01:14.5]} 34. Qa8+ {[%clk 0:01:28.8]} 34... Bf8 {[%clk 0:01:13.4]} 35.
Rc8 {[%clk 0:01:29.3]} 35... Rd1+ {[%clk 0:01:11.2]} 36. Kg2 {[%clk 0:01:29.7]}
36... Qd5+ {[%clk 0:01:11.7]} 0-1

[Event "*** Titled Tuesday Blitz"]
[Site "Chess.com"]
[Date "2020.04.14"]
[Round "9"]
[White "Jojo_1608"]
[Black "RaphCamora"]
[Result "0-1"]
[WhiteElo "2235"]
[BlackElo "2418"]
[TimeControl "180+1"]
[EndTime "11:40:32 PDT"]
[Termination "RaphCamora won by resignation"]

1. d4 {[%clk 0:03:00.9]} 1... d5 {[%clk 0:02:59.4]} 2. c4 {[%clk 0:03:01.2]}
2... e6 {[%clk 0:02:59.6]} 3. Nc3 {[%clk 0:03:01.2]} 3... c6 {[%clk 0:02:55.2]}
4. Nf3 {[%clk 0:03:00.1]} 4... dxc4 {[%clk 0:02:55]} 5. e3 {[%clk 0:02:59.6]}
5... b5 {[%clk 0:02:54]} 6. a4 {[%clk 0:02:58]} 6... Bb4 {[%clk 0:02:53.8]} 7.
Bd2 {[%clk 0:02:54]} 7... a5 {[%clk 0:02:53.4]} 8. axb5 {[%clk 0:02:45.1]} 8...
Bxc3 {[%clk 0:02:53.5]} 9. Bxc3 {[%clk 0:02:41.1]} 9... cxb5 {[%clk 0:02:54.4]}
10. b3 {[%clk 0:02:39.9]} 10... Bb7 {[%clk 0:02:53.5]} 11. bxc4 {[%clk
0:02:36.5]} 11... b4 {[%clk 0:02:53.7]} 12. Bd2 {[%clk 0:02:35.3]} 12... Nf6
{[%clk 0:02:52.9]} 13. Bd3 {[%clk 0:02:35.3]} 13... O-O {[%clk 0:02:50.5]} 14.
O-O {[%clk 0:02:35.6]} 14... Nbd7 {[%clk 0:02:35.6]} 15. Re1 {[%clk 0:02:31.4]}
15... Ne4 {[%clk 0:02:34.9]} 16. Qc2 {[%clk 0:02:25]} 16... Ndf6 {[%clk
0:02:33.9]} 17. Bc1 {[%clk 0:02:16.2]} 17... Qc7 {[%clk 0:02:24.6]} 18. Ne5
{[%clk 0:02:11.6]} 18... Nc5 {[%clk 0:02:08.3]} 19. Bf1 {[%clk 0:01:46.2]} 19...
Ncd7 {[%clk 0:02:01]} 20. Nf3 {[%clk 0:01:40.6]} 20... Be4 {[%clk 0:01:55.6]}
21. Bd3 {[%clk 0:01:40]} 21... Bxd3 {[%clk 0:01:48.8]} 22. Qxd3 {[%clk
0:01:39.6]} 22... a4 {[%clk 0:01:48]} 23. e4 {[%clk 0:01:39.2]} 23... e5 {[%clk
0:01:47.1]} 24. dxe5 {[%clk 0:01:35.3]} 24... Nxe5 {[%clk 0:01:45.7]} 25. Nxe5
{[%clk 0:01:33.3]} 25... Qxe5 {[%clk 0:01:45.1]} 26. Rb1 {[%clk 0:01:33.4]}
26... Rfd8 {[%clk 0:01:42.8]} 27. Qf3 {[%clk 0:01:26]} 27... a3 {[%clk
0:01:33.4]} 28. Rxb4 {[%clk 0:01:22.7]} 28... a2 {[%clk 0:01:32.9]} 29. Rb5
{[%clk 0:01:10.1]} 29... a1=Q {[%clk 0:01:21.3]} 0-1

[Event "*** Titled Tuesday Blitz"]
[Site "Chess.com"]
[Date "2020.04.14"]
[Round "9"]
[White "Sjakkerntobi"]
[Black "DucksParadise"]
[Result "0-1"]
[WhiteElo "2225"]
[BlackElo "2118"]
[TimeControl "180+1"]
[EndTime "11:40:37 PDT"]
[Termination "DucksParadise won by checkmate"]

1. e4 {[%clk 0:03:00.9]} 1... d5 {[%clk 0:02:57.5]} 2. exd5 {[%clk 0:03:00.5]}
2... Qxd5 {[%clk 0:02:58.4]} 3. Nf3 {[%clk 0:03:01.2]} 3... Nc6 {[%clk
0:02:55.7]} 4. Be2 {[%clk 0:03:00.5]} 4... Bg4 {[%clk 0:02:50.6]} 5. d4 {[%clk
0:03:00.3]} 5... O-O-O {[%clk 0:02:48.7]} 6. c4 {[%clk 0:02:57.3]} 6... Qf5
{[%clk 0:02:24.3]} 7. Be3 {[%clk 0:02:55.2]} 7... e5 {[%clk 0:02:16.9]} 8. d5
{[%clk 0:02:54.1]} 8... e4 {[%clk 0:01:56.4]} 9. Nd4 {[%clk 0:02:46.9]} 9...
Bxe2 {[%clk 0:01:55.6]} 10. Qxe2 {[%clk 0:02:47.8]} 10... Nxd4 {[%clk
0:01:49.9]} 11. Bxd4 {[%clk 0:02:48.7]} 11... Kb8 {[%clk 0:01:11.1]} 12. Nc3
{[%clk 0:02:47.6]} 12... Nf6 {[%clk 0:01:09.8]} 13. O-O {[%clk 0:02:43.2]} 13...
c6 {[%clk 0:01:06.2]} 14. Rfd1 {[%clk 0:02:37.8]} 14... cxd5 {[%clk 0:00:57.4]}
15. cxd5 {[%clk 0:02:38.7]} 15... Nxd5 {[%clk 0:00:51.9]} 16. Nxd5 {[%clk
0:02:39.6]} 16... Rxd5 {[%clk 0:00:52.3]} 17. Rac1 {[%clk 0:02:39.6]} 17... Bd6
{[%clk 0:00:16.5]} 18. Qd3 {[%clk 0:02:38.6]} 18... exd3 {[%clk 0:00:16]} 19.
Be3 {[%clk 0:02:36.8]} 19... Rc8 {[%clk 0:00:14.4]} 20. Ra1 {[%clk 0:02:35]}
20... Rc2 {[%clk 0:00:11.6]} 21. g3 {[%clk 0:02:34]} 21... d2 {[%clk 0:00:09.7]}
22. Kg2 {[%clk 0:02:31.8]} 22... Qe4+ {[%clk 0:00:08.6]} 23. Kg1 {[%clk
0:02:31.4]} 23... Qf3 {[%clk 0:00:07.2]} 24. a3 {[%clk 0:02:29]} 24... Bc5
{[%clk 0:00:05.8]} 25. Bxc5 {[%clk 0:02:24.3]} 25... Rdxc5 {[%clk 0:00:06.7]}
26. Rf1 {[%clk 0:02:25]} 26... Rc1 {[%clk 0:00:03.2]} 27. b4 {[%clk 0:02:20.3]}
27... Rxf1+ {[%clk 0:00:04.1]} 28. Rxf1 {[%clk 0:02:19.5]} 28... Rc1 {[%clk
0:00:05]} 29. Re1 {[%clk 0:02:11.3]} 29... Rxe1# {[%clk 0:00:04.7]} 0-1

[Event "*** Titled Tuesday Blitz"]
[Site "Chess.com"]
[Date "2020.04.14"]
[Round "9"]
[White "smshk35"]
[Black "NFChess13"]
[Result "1-0"]
[WhiteElo "2292"]
[BlackElo "2419"]
[TimeControl "180+1"]
[EndTime "11:40:45 PDT"]
[Termination "smshk35 won by resignation"]

1. e4 {[%clk 0:03:00.9]} 1... c5 {[%clk 0:02:59.9]} 2. Nf3 {[%clk 0:03:00.6]}
2... e6 {[%clk 0:03:00.4]} 3. d3 {[%clk 0:02:58.6]} 3... Nc6 {[%clk 0:03:00.4]}
4. Nbd2 {[%clk 0:02:57.5]} 4... g6 {[%clk 0:03:00.4]} 5. g3 {[%clk 0:02:57.4]}
5... Bg7 {[%clk 0:03:00.8]} 6. Bg2 {[%clk 0:02:57.7]} 6... Nge7 {[%clk
0:03:01.3]} 7. O-O {[%clk 0:02:58.1]} 7... O-O {[%clk 0:03:01.6]} 8. c3 {[%clk
0:02:58.6]} 8... d5 {[%clk 0:02:53]} 9. Qe2 {[%clk 0:02:57.2]} 9... Qc7 {[%clk
0:02:45.8]} 10. Re1 {[%clk 0:02:54.5]} 10... h6 {[%clk 0:02:43.6]} 11. a4 {[%clk
0:02:52.2]} 11... b6 {[%clk 0:02:42.3]} 12. exd5 {[%clk 0:02:52.3]} 12... exd5
{[%clk 0:02:39.8]} 13. c4 {[%clk 0:02:49]} 13... Be6 {[%clk 0:02:35.3]} 14. Nb3
{[%clk 0:02:44.4]} 14... Rfe8 {[%clk 0:02:31]} 15. Bf4 {[%clk 0:02:44.5]} 15...
Qd7 {[%clk 0:02:27]} 16. a5 {[%clk 0:02:43.7]} 16... Nf5 {[%clk 0:02:18.3]} 17.
axb6 {[%clk 0:02:43.3]} 17... axb6 {[%clk 0:02:18.1]} 18. Rxa8 {[%clk
0:02:40.8]} 18... Rxa8 {[%clk 0:02:19]} 19. Ne5 {[%clk 0:02:39.8]} 19... Nxe5
{[%clk 0:02:13.1]} 20. Bxe5 {[%clk 0:02:40]} 20... Rd8 {[%clk 0:01:59.7]} 21.
Bxg7 {[%clk 0:02:37]} 21... Nxg7 {[%clk 0:01:50.9]} 22. Nd2 {[%clk 0:02:29.8]}
22... Nf5 {[%clk 0:01:50]} 23. Nf3 {[%clk 0:02:23.7]} 23... Kh7 {[%clk
0:01:48.4]} 24. Ne5 {[%clk 0:02:23.7]} 24... Qa7 {[%clk 0:01:38.5]} 25. Nc6
{[%clk 0:02:21.5]} 25... Qd7 {[%clk 0:01:33.7]} 26. Nxd8 {[%clk 0:02:20.7]}
26... Qxd8 {[%clk 0:01:34.6]} 27. cxd5 {[%clk 0:02:17.2]} 27... Bxd5 {[%clk
0:01:35.5]} 28. Qe8 {[%clk 0:02:15.6]} 28... Qd6 {[%clk 0:01:28.2]} 29. Qe5
{[%clk 0:02:11.7]} 29... Qxe5 {[%clk 0:01:22.9]} 30. Rxe5 {[%clk 0:02:12.6]}
30... Bxg2 {[%clk 0:01:22.5]} 31. Kxg2 {[%clk 0:02:13.5]} 31... Kg7 {[%clk
0:01:22.4]} 32. b4 {[%clk 0:02:06.6]} 32... Kf6 {[%clk 0:01:19.9]} 33. f4 {[%clk
0:02:02.4]} 33... cxb4 {[%clk 0:01:16.4]} 34. Rb5 {[%clk 0:02:01.9]} 34... Ke6
{[%clk 0:01:16.2]} 35. Rxb6+ {[%clk 0:02:00.9]} 35... Kd5 {[%clk 0:01:17.1]} 36.
Rxb4 {[%clk 0:02:00.7]} 36... h5 {[%clk 0:01:15.8]} 37. Kf3 {[%clk 0:01:57.2]}
37... Nd4+ {[%clk 0:01:15.5]} 38. Rxd4+ {[%clk 0:01:52.8]} 38... Kxd4 {[%clk
0:01:16.4]} 39. Ke2 {[%clk 0:01:53.1]} 39... f6 {[%clk 0:01:03.9]} 40. Kd2
{[%clk 0:01:52.5]} 40... g5 {[%clk 0:01:04]} 41. fxg5 {[%clk 0:01:51.7]} 41...
fxg5 {[%clk 0:01:03.9]} 42. Ke2 {[%clk 0:01:51.4]} 42... g4 {[%clk 0:00:53.8]}
43. Kd2 {[%clk 0:01:49.9]} 1-0

[Event "*** Titled Tuesday Blitz"]
[Site "Chess.com"]
[Date "2020.04.14"]
[Round "9"]
[White "Eloist"]
[Black "mapebo94"]
[Result "0-1"]
[WhiteElo "2243"]
[BlackElo "2058"]
[TimeControl "180+1"]
[EndTime "11:40:49 PDT"]
[Termination "mapebo94 won by resignation"]

1. e4 {[%clk 0:02:58.6]} 1... e6 {[%clk 0:03:00.9]} 2. d4 {[%clk 0:02:57.4]}
2... d5 {[%clk 0:03:01.8]} 3. Nd2 {[%clk 0:02:53.8]} 3... c5 {[%clk 0:03:02.7]}
4. Ngf3 {[%clk 0:02:52.8]} 4... dxe4 {[%clk 0:03:00.6]} 5. Nxe4 {[%clk
0:02:51.3]} 5... cxd4 {[%clk 0:03:01.5]} 6. Nxd4 {[%clk 0:02:48.1]} 6... e5
{[%clk 0:02:59.1]} 7. Nb5 {[%clk 0:02:42.4]} 7... Qxd1+ {[%clk 0:02:57.2]} 8.
Kxd1 {[%clk 0:02:43.3]} 8... Na6 {[%clk 0:02:57.2]} 9. Ned6+ {[%clk 0:02:28.6]}
9... Bxd6 {[%clk 0:02:56.3]} 10. Nxd6+ {[%clk 0:02:29.5]} 10... Ke7 {[%clk
0:02:56.6]} 11. Nxc8+ {[%clk 0:02:25.9]} 11... Rxc8 {[%clk 0:02:57.5]} 12. Be3
{[%clk 0:02:16.2]} 12... Nc5 {[%clk 0:02:54.4]} 13. c3 {[%clk 0:02:10.1]} 13...
f5 {[%clk 0:02:51.9]} 14. f3 {[%clk 0:02:00.1]} 14... Nf6 {[%clk 0:02:51.6]} 15.
Kc2 {[%clk 0:01:57.9]} 15... Rhd8 {[%clk 0:02:51]} 16. Be2 {[%clk 0:01:55.9]}
16... f4 {[%clk 0:02:49.6]} 17. Bf2 {[%clk 0:01:51]} 17... g5 {[%clk 0:02:49.2]}
18. h4 {[%clk 0:01:47.2]} 18... h6 {[%clk 0:02:49]} 19. hxg5 {[%clk 0:01:46.5]}
19... hxg5 {[%clk 0:02:49.9]} 20. Rad1 {[%clk 0:01:36.1]} 20... Ne6 {[%clk
0:02:43.6]} 21. Rxd8 {[%clk 0:01:26.5]} 21... Rxd8 {[%clk 0:02:38]} 22. Bc4
{[%clk 0:01:18.7]} 22... e4 {[%clk 0:02:24.7]} 23. fxe4 {[%clk 0:01:12.8]} 23...
Nxe4 {[%clk 0:02:23.5]} 24. Rh7+ {[%clk 0:01:09.3]} 24... Kf6 {[%clk 0:02:17.7]}
25. Rh6+ {[%clk 0:00:56.1]} 25... Kg7 {[%clk 0:02:15.6]} 26. Rxe6 {[%clk
0:00:53.4]} 26... Nxf2 {[%clk 0:02:15.1]} 27. Re7+ {[%clk 0:00:48.8]} 27... Kg6
{[%clk 0:02:13.5]} 28. Rxb7 {[%clk 0:00:48]} 28... Ne4 {[%clk 0:02:10.7]} 29.
Bd3 {[%clk 0:00:47]} 29... Rxd3 {[%clk 0:02:08.7]} 30. Re7 {[%clk 0:00:22.8]}
30... Rd2+ {[%clk 0:02:06.9]} 31. Kc1 {[%clk 0:00:20.2]} 31... Re2 {[%clk
0:02:06.9]} 32. Rxa7 {[%clk 0:00:19.1]} 32... Rxg2 {[%clk 0:02:05.9]} 33. a4
{[%clk 0:00:17.1]} 33... f3 {[%clk 0:02:05.6]} 34. Ra6+ {[%clk 0:00:15.8]} 34...
Nf6 {[%clk 0:02:04.4]} 0-1

[Event "*** Titled Tuesday Blitz"]
[Site "Chess.com"]
[Date "2020.04.14"]
[Round "9"]
[White "AlanZhang"]
[Black "Oleg_Papayan"]
[Result "1-0"]
[WhiteElo "2194"]
[BlackElo "2346"]
[TimeControl "180+1"]
[EndTime "11:40:50 PDT"]
[Termination "AlanZhang won by resignation"]

1. e4 {[%clk 0:03:00.9]} 1... e5 {[%clk 0:02:59.5]} 2. Nf3 {[%clk 0:02:54.7]}
2... Nc6 {[%clk 0:02:59.8]} 3. Bb5 {[%clk 0:02:51.4]} 3... f5 {[%clk 0:03:00]}
4. Bxc6 {[%clk 0:02:47.2]} 4... bxc6 {[%clk 0:02:58]} 5. Nxe5 {[%clk 0:02:47.2]}
5... Qf6 {[%clk 0:02:47.6]} 6. d4 {[%clk 0:02:45.7]} 6... fxe4 {[%clk
0:02:40.7]} 7. Nc3 {[%clk 0:02:45.5]} 7... d5 {[%clk 0:02:38.6]} 8. O-O {[%clk
0:02:40]} 8... Bb4 {[%clk 0:02:26.4]} 9. f3 {[%clk 0:02:31.5]} 9... Ba6 {[%clk
0:02:26.4]} 10. Rf2 {[%clk 0:02:29.1]} 10... e3 {[%clk 0:02:05.5]} 11. Bxe3
{[%clk 0:02:26.6]} 11... Ne7 {[%clk 0:02:06.4]} 12. a3 {[%clk 0:02:12.8]} 12...
Bd6 {[%clk 0:02:03.1]} 13. f4 {[%clk 0:02:06.4]} 13... Nf5 {[%clk 0:01:50.1]}
14. Qf3 {[%clk 0:01:51.4]} 14... Nxe3 {[%clk 0:01:46]} 15. Qxe3 {[%clk
0:01:50.6]} 15... O-O {[%clk 0:01:46.8]} 16. Nd7 {[%clk 0:01:24.5]} 16... Qf5
{[%clk 0:01:46.5]} 17. Nxf8 {[%clk 0:01:22.8]} 17... Qxf8 {[%clk 0:01:46.6]} 18.
Re1 {[%clk 0:01:20.9]} 18... Rb8 {[%clk 0:01:46]} 19. b4 {[%clk 0:01:20.1]}
19... Bc8 {[%clk 0:01:41.2]} 20. Qe8 {[%clk 0:01:13.8]} 20... Bf5 {[%clk
0:01:41.4]} 21. Qxc6 {[%clk 0:01:11.9]} 21... Kh8 {[%clk 0:01:27.2]} 22. Nxd5
{[%clk 0:01:07.6]} 22... a5 {[%clk 0:01:25.7]} 23. Rfe2 {[%clk 0:01:05.7]} 23...
Bg6 {[%clk 0:01:23.1]} 24. b5 {[%clk 0:00:58.3]} 24... h5 {[%clk 0:01:17.5]} 25.
b6 {[%clk 0:00:50.1]} 25... cxb6 {[%clk 0:01:14.5]} 26. Re6 {[%clk 0:00:49]} 1-0